fUSD/lending_fUSD_20250208
["ID","MTS","AMOUNT","RATE_DAILY","PERIOD"]
[352326297,1739043048019,-500.0,0.00010135,2]
[352326299,1739043048029,-500.0,0.00010135,2]
[352326301,1739043048039,-758.61,0.00010135,2]
[352326302,1739043048048,-500.0,0.00010135,2]
[352326304,1739043048058,-628.69,0.00010135,2]
[352326306,1739043048068,-500.0,0.00010135,2]
[352326308,1739043048079,-500.0,0.00010135,2]
[352326310,1739043048089,-644.28,0.00010135,2]
[352326312,1739043048099,-500.0,0.00010135,2]
[352326313,1739043048108,-500.0,0.00010135,2]
[352326314,1739043048118,-206.52776348,0.00010135,2]
[352326315,1739043048127,-500.0,0.00010135,2]
[352326316,1739043048137,-500.0,0.00010135,2]
[352326317,1739043048146,-500.0,0.00010135,2]
[352326318,1739043048156,-500.0,0.00010135,2]
[352326319,1739043048165,-953.29,0.00010135,2]
[352326320,1739043048175,-500.0,0.00010135,2]
[352326321,1739043048185,-500.0,0.00010135,2]
[352326322,1739043048195,-500.0,0.00010135,2]
[352326323,1739043048205,-1080.65,0.00010135,2]
[352326324,1739043048214,-63053.6525373,0.00010135,2]
[352326325,1739043048224,-576.07,0.00010136,2]
[352326326,1739043048233,-2032.36,0.00010136,2]
[352326327,1739043048243,-1169.34,0.00010136,2]
[352326328,1739043048252,-897.82,0.00010136,2]
[352326330,1739043048261,-500.0,0.00010136,2]
[352326332,1739043048271,-500.0,0.00010136,2]
[352326333,1739043048280,-830.0,0.00010136,2]
[352326335,1739043048291,-948.5,0.00010136,2]
[352326337,1739043048301,-845.68,0.00010136,2]
[352326339,1739043048311,-1815.3,0.00010136,2]
[352326341,1739043048320,-1751.76,0.00010136,2]
[352326343,1739043048331,-863.25,0.00010136,2]
[352326345,1739043048341,-692.67,0.00010136,2]
[352326366,1739043048550,-1575.88,0.00010136,2]
[352326368,1739043048561,-245.02671322,0.00010136,2]
[352326370,1739043048572,-1834.85,0.00010136,2]
[352326372,1739043048583,-779.44,0.00010136,2]
[352326374,1739043048593,-1013.19,0.00010136,2]
[352326376,1739043048604,-500.0,0.00010136,2]
[352326378,1739043048614,-1086.66,0.00010136,2]
[352326380,1739043048623,-1278.1,0.00010136,2]
[352326382,1739043048632,-2399.26,0.00010136,2]
[352326384,1739043048644,-500.0,0.00010136,2]
[352326386,1739043048654,-671.24,0.00010136,2]
[352326388,1739043048664,-500.0,0.00010136,2]
[352326390,1739043048674,-500.0,0.00010136,2]
[352326392,1739043048684,-860.53,0.00010136,2]
[352326394,1739043048694,-1412.47,0.00010136,2]
[352326396,1739043048704,-1223.4,0.00010136,2]
[352326398,1739043048714,-620.81,0.00010136,2]
[352326400,1739043048724,-500.0,0.00010136,2]
[352326402,1739043048735,-562.06,0.00010136,2]
[352326404,1739043048746,-415.18,0.00010137,2]
[352326406,1739043048756,-500.0,0.000102,2]
[352326408,1739043048767,-900.0,0.00010227,2]
[352326410,1739043048776,-804.0,0.00010247,2]
[352326412,1739043048786,-1312.0,0.00010247,2]
[352326414,1739043048795,-521.03,0.00010271,2]
[352326416,1739043048805,-500.0,0.00010271,2]
[352326418,1739043048815,-619.25,0.00010271,2]
[352326420,1739043048825,-500.0,0.00010271,2]
[352326422,1739043048835,-500.0,0.00010271,2]
[352326424,1739043048846,-845.14,0.00010271,2]
[352326426,1739043048857,-719.5,0.00010271,2]
[352326428,1739043048867,-500.0,0.00010271,2]
[352326430,1739043048876,-712.65,0.00010271,2]
[352326432,1739043048887,-500.0,0.00010271,2]
[352326434,1739043048897,-500.0,0.00010271,2]
[352326436,1739043048907,-661.8,0.00010271,2]
[352326438,1739043048917,-500.0,0.00010271,2]
[352326440,1739043048927,-500.0,0.00010271,2]
[352326441,1739043048937,-500.0,0.00010271,2]
[352326442,1739043048947,-500.0,0.00010271,2]
[352326443,1739043048958,-500.0,0.00010271,2]
[352326444,1739043048968,-500.0,0.00010271,2]
[352326445,1739043048978,-572.41,0.00010271,2]
[352326446,1739043048987,-500.0,0.00010271,2]
[352326447,1739043048997,-500.0,0.00010271,2]
[352326448,1739043049006,-500.0,0.00010271,2]
[352326449,1739043049016,-500.0,0.00010271,2]
[352326450,1739043049026,-642.26,0.00010271,2]
[352326451,1739043049035,-1123.42,0.00010271,2]
[352326452,1739043049046,-500.0,0.00010271,2]
[352326453,1739043049055,-500.0,0.00010271,2]
[352326454,1739043049065,-500.0,0.00010271,2]
[352326456,1739043049074,-500.0,0.00010271,2]
[352326458,1739043049084,-777.9,0.00010271,2]
[352326460,1739043049094,-823.974585,0.00010271,2]
[352326461,1739043049103,-500.0,0.00010271,2]
[352326464,1739043049112,-500.0,0.00010271,2]
[352326466,1739043049122,-500.0,0.00010271,2]
[352326468,1739043049131,-552.83,0.00010271,2]
[352326470,1739043049141,-500.0,0.00010271,2]
[352326472,1739043049151,-762.13,0.00010271,2]
[352326474,1739043049160,-500.0,0.00010271,2]
[352326476,1739043049169,-500.0,0.00010271,2]
[352326478,1739043049178,-500.0,0.00010271,2]
[352326480,1739043049187,-786.67,0.00010271,2]
[352326481,1739043049197,-500.0,0.00010271,2]
[352326483,1739043049207,-752.894577,0.00010271,2]
[352326485,1739043049216,-500.0,0.00010271,2]
[352326487,1739043049226,-742.31,0.00010271,2]
[352326489,1739043049235,-500.0,0.00010271,2]
[352326491,1739043049244,-500.0,0.00010271,2]
[352326493,1739043049254,-571.41,0.00010271,2]
[352326495,1739043049263,-500.0,0.00010271,2]
[352326497,1739043049272,-835.53,0.00010271,2]
[352326499,1739043049282,-968.82,0.00010271,2]
[352326501,1739043049291,-500.0,0.00010271,2]
[352326503,1739043049301,-605.99,0.00010271,2]
[352326505,1739043049310,-500.0,0.00010271,2]
[352326507,1739043049320,-500.0,0.00010271,2]
[352326509,1739043049329,-851.48,0.00010271,2]
[352326511,1739043049338,-500.0,0.00010271,2]
[352326514,1739043049350,-500.0,0.00010271,2]
[352326515,1739043049360,-644.53,0.00010271,2]
[352326518,1739043049370,-697.9,0.00010271,2]
[352326520,1739043049379,-500.0,0.00010271,2]
[352326522,1739043049389,-752.21,0.00010271,2]
[352326523,1739043049399,-500.0,0.00010271,2]
[352326525,1739043049408,-500.0,0.00010271,2]
[352326527,1739043049418,-763.93,0.00010271,2]
[352326530,1739043049430,-802.72,0.00010271,2]
[352326532,1739043049439,-500.0,0.00010271,2]
[352326534,1739043049449,-1508.05,0.00010271,2]
[352326536,1739043049459,-563.54,0.00010271,2]
[352326537,1739043049468,-500.0,0.00010271,2]
[352326540,1739043049478,-896.17,0.00010271,2]
[352326541,1739043049487,-649.25,0.00010271,2]
[352326543,1739043049496,-1421.08,0.00010271,2]
[352326546,1739043049506,-545.39698578,0.00010271,2]
[352326548,1739043049516,-1296.16,0.00010271,2]
[352326550,1739043049526,-837.55,0.00010271,2]
[352326552,1739043049535,-563.67,0.00010271,2]
[352326554,1739043049545,-500.0,0.00010271,2]
[352326556,1739043049555,-778.79,0.00010271,2]
[352326558,1739043049564,-954.36,0.00010271,2]
[352326560,1739043049573,-736.34,0.00010271,2]
[352326562,1739043049583,-647.22,0.00010271,2]
[352326564,1739043049592,-1574.15,0.00010271,2]
[352326565,1739043049602,-800.6,0.00010271,2]
[352326568,1739043049612,-981.33,0.00010271,2]
[352326570,1739043049621,-938.54,0.00010271,2]
[352326572,1739043049631,-1008.39,0.00010271,2]
[352326574,1739043049640,-500.0,0.00010271,2]
[352326576,1739043049650,-1172.95,0.00010271,2]
[352326577,1739043049659,-776.73,0.00010271,2]
[352326580,1739043049668,-2351.42,0.00010271,2]
[352326582,1739043049678,-1470.42,0.00010271,2]
[352326584,1739043049687,-756.89,0.00010271,2]
[352326586,1739043049696,-830.68,0.00010271,2]
[352326588,1739043049706,-500.0,0.00010271,2]
[352326589,1739043049715,-611.75,0.00010271,2]
[352326592,1739043049725,-1327.21,0.00010271,2]
[352326593,1739043049735,-1450.77,0.00010271,2]
[352326596,1739043049744,-500.0,0.00010271,2]
[352326598,1739043049755,-1229.83,0.00010271,2]
[352326600,1739043049764,-659.24,0.00010271,2]
[352326601,1739043049774,-2123.6,0.00010271,2]
[352326604,1739043049784,-669.29,0.00010271,2]
[352326606,1739043049794,-500.0,0.00010271,2]
[352326608,1739043049803,-500.0,0.00010271,2]
[352326609,1739043049812,-1113.0,0.00010271,2]
[352326611,1739043049821,-3985.16,0.00010271,2]
[352326613,1739043049831,-500.0,0.00010271,2]
[352326615,1739043049840,-1725.78,0.00010271,2]
[352326617,1739043049849,-500.0,0.00010271,2]
[352326620,1739043049859,-500.0,0.00010271,2]
[352326622,1739043049869,-2160.17,0.00010271,2]
[352326624,1739043049878,-500.0,0.00010271,2]
[352326626,1739043049887,-1179.79,0.00010271,2]
[352326628,1739043049896,-1817.34,0.00010271,2]
[352326630,1739043049905,-500.0,0.00010271,2]
[352326632,1739043049916,-558.14,0.00010271,2]
[352326634,1739043049926,-826.7,0.00010271,2]
[352326635,1739043049935,-2208.19,0.00010271,2]
[352326636,1739043049944,-1581.51,0.00010271,2]
[352326637,1739043049954,-2813.03,0.00010271,2]
[352326638,1739043049963,-500.0,0.00010271,2]
[352326639,1739043049973,-500.0,0.00010271,2]
[352326640,1739043049982,-929.72,0.00010271,2]
[352326641,1739043049993,-500.0,0.00010271,2]
[352326642,1739043050003,-1073.87,0.00010271,2]
[352326644,1739043050012,-1284.77,0.00010271,2]
[352326646,1739043050022,-904.23,0.00010271,2]
[352326648,1739043050031,-1492.59,0.00010271,2]
[352326650,1739043050040,-1214.2,0.00010271,2]
[352326652,1739043050049,-1224.9,0.00010271,2]
[352326654,1739043050058,-500.0,0.00010271,2]
[352326656,1739043050067,-500.0,0.00010271,2]
[352326658,1739043050077,-2931.99,0.00010271,2]
[352326660,1739043050087,-803.19,0.00010271,2]
[352326662,1739043050096,-1092.49,0.00010271,2]
[352326664,1739043050105,-658.36,0.00010271,2]
[352326666,1739043050114,-892.2,0.00010271,2]
[352326668,1739043050124,-947.86,0.00010271,2]
[352326669,1739043050133,-636.37,0.00010271,2]
[352326670,1739043050142,-500.0,0.00010271,2]
[352326671,1739043050152,-500.0,0.00010271,2]
[352326673,1739043050161,-733.53,0.00010271,2]
[352326675,1739043050170,-1365.88,0.00010271,2]
[352326677,1739043050179,-1204.67,0.00010271,2]
[352326678,1739043050188,-500.0,0.00010271,2]
[352326679,1739043050197,-500.0,0.00010271,2]
[352326680,1739043050209,-1240.06,0.00010271,2]
[352326681,1739043050219,-531.84,0.00010271,2]
[352326682,1739043050228,-1628.18,0.00010271,2]
[352326683,1739043050238,-1775.76,0.00010271,2]
[352326684,1739043050247,-873.47,0.00010271,2]
[352326686,1739043050256,-500.0,0.00010271,2]
[352326688,1739043050265,-1476.66,0.00010271,2]
[352326690,1739043050274,-1221.84,0.00010271,2]
[352326692,1739043050284,-500.0,0.00010271,2]
[352326694,1739043050293,-500.0,0.00010272,2]
[352326696,1739043050303,-500.0,0.00010272,2]
[352326698,1739043050312,-500.0,0.00010272,2]
[352326700,1739043050321,-500.0,0.00010272,2]
[352326701,1739043050331,-500.0,0.00010272,2]
[352326702,1739043050340,-500.0,0.00010272,2]
[352326703,1739043050353,-500.0,0.00010272,2]
[352326704,1739043050363,-500.0,0.00010272,2]
[352326705,1739043050374,-500.0,0.00010272,2]
[352326706,1739043050384,-500.0,0.00010272,2]
[352326707,1739043050395,-500.0,0.00010272,2]
[352326709,1739043050404,-500.0,0.00010272,2]
[352326711,1739043050413,-500.0,0.00010272,2]
[352326713,1739043050422,-500.0,0.00010272,2]
[352326715,1739043050433,-500.0,0.00010272,2]
[352326717,1739043050442,-500.0,0.00010272,2]
[352326719,1739043050451,-500.0,0.00010272,2]
[352326721,1739043050461,-500.0,0.00010272,2]
[352326723,1739043050471,-500.0,0.00010272,2]
[352326725,1739043050480,-500.0,0.00010272,2]
[352326727,1739043050489,-500.0,0.00010272,2]
[352326729,1739043050498,-500.0,0.00010272,2]
[352326731,1739043050508,-500.0,0.00010272,2]
[352326733,1739043050517,-500.0,0.00010272,2]
[352326734,1739043050527,-500.0,0.00010272,2]
[352326736,1739043050537,-500.0,0.00010272,2]
[352326738,1739043050546,-500.0,0.00010272,2]
[352326740,1739043050556,-500.0,0.00010272,2]
[352326742,1739043050565,-500.0,0.00010272,2]
[352326745,1739043050575,-500.0,0.00010272,2]
[352326747,1739043050584,-500.0,0.00010272,2]
[352326749,1739043050594,-500.0,0.00010272,2]
[352326751,1739043050603,-500.0,0.00010272,2]
[352326753,1739043050612,-500.0,0.00010272,2]
[352326755,1739043050621,-500.0,0.00010272,2]
[352326757,1739043050631,-565.82085073,0.00010272,2]
[352326759,1739043050640,-500.0,0.00010272,2]
[352326761,1739043050650,-500.0,0.00010272,2]
[352326762,1739043050659,-500.0,0.00010272,2]
[352326764,1739043050668,-500.0,0.00010272,2]
[352326766,1739043050677,-272.89,0.00010272,2]
[352326768,1739043050687,-500.0,0.00010272,2]
[352326770,1739043050696,-500.0,0.00010272,2]
[352326773,1739043050707,-500.0,0.00010272,2]
[352326775,1739043050716,-500.0,0.00010272,2]
[352326777,1739043050726,-500.0,0.00010272,2]
[352326779,1739043050735,-500.0,0.00010272,2]
[352326780,1739043050745,-500.0,0.00010272,2]
[352326783,1739043050754,-500.0,0.00010272,2]
[352326785,1739043050764,-500.0,0.00010272,2]
[352326786,1739043050773,-500.0,0.00010272,2]
[352326788,1739043050782,-500.0,0.00010272,2]
[352326790,1739043050791,-517.61,0.00010272,2]
[352326792,1739043050800,-500.0,0.00010272,2]
[352326794,1739043050809,-629.64,0.00010272,2]
[352326796,1739043050819,-500.0,0.00010272,2]
[352326798,1739043050828,-500.0,0.00010272,2]
[352326800,1739043050837,-500.0,0.00010272,2]
[352326802,1739043050847,-500.0,0.00010272,2]
[352326804,1739043050856,-500.0,0.00010272,2]
[352326806,1739043050866,-500.0,0.00010272,2]
[352326808,1739043050875,-781.39,0.00010272,2]
[352326810,1739043050940,-500.0,0.00010272,2]
[352326811,1739043050950,-500.0,0.00010272,2]
[352326812,1739043050960,-929.63,0.00010272,2]
[352326813,1739043050969,-500.0,0.00010272,2]
[352326814,1739043050978,-288.60526992,0.00010272,2]
[352326815,1739043050988,-500.0,0.00010272,2]
[352326816,1739043050997,-619.68,0.00010272,2]
[352326817,1739043051006,-500.0,0.00010272,2]
[352326818,1739043051015,-500.0,0.00010272,2]
[352326819,1739043051025,-506.68,0.00010272,2]
[352326820,1739043051034,-500.0,0.00010272,2]
[352326821,1739043051044,-738.39,0.00010272,2]
[352326822,1739043051052,-500.0,0.00010272,2]
[352326823,1739043051062,-500.0,0.00010272,2]
[352326824,1739043051071,-500.0,0.00010272,2]
[352326825,1739043051080,-500.0,0.00010272,2]
[352326826,1739043051091,-877.37,0.00010272,2]
[352326827,1739043051100,-500.0,0.00010272,2]
[352326828,1739043051115,-638.94,0.00010272,2]
[352326829,1739043051125,-500.0,0.00010272,2]
[352326830,1739043051135,-500.0,0.00010272,2]
[352326831,1739043051145,-500.0,0.00010272,2]
[352326832,1739043051155,-500.0,0.00010272,2]
[352326833,1739043051164,-500.0,0.00010272,2]
[352326834,1739043051174,-500.0,0.00010272,2]
[352326835,1739043051183,-601.77,0.00010272,2]
[352326836,1739043051193,-500.0,0.00010272,2]
[352326837,1739043051203,-500.0,0.00010272,2]
[352326838,1739043051213,-500.0,0.00010272,2]
[352326839,1739043051222,-500.0,0.00010272,2]
[352326840,1739043051231,-500.0,0.00010272,2]
[352326841,1739043051241,-500.0,0.00010272,2]
[352326842,1739043051250,-500.0,0.00010272,2]
[352326843,1739043051260,-500.0,0.00010272,2]
[352326844,1739043051270,-500.0,0.00010272,2]
[352326845,1739043051279,-500.0,0.00010272,2]
[352326846,1739043051292,-500.0,0.00010272,2]
[352326847,1739043051301,-500.0,0.00010272,2]
[352326848,1739043051310,-500.0,0.00010272,2]
[352326849,1739043051320,-500.0,0.00010272,2]
[352326850,1739043051329,-500.0,0.00010272,2]
[352326851,1739043051338,-500.0,0.00010272,2]
[352326852,1739043051349,-500.0,0.00010272,2]
[352326853,1739043051361,-500.0,0.00010272,2]
[352326854,1739043051370,-500.0,0.00010272,2]
[352326855,1739043051379,-500.0,0.00010272,2]
[352326856,1739043051390,-500.0,0.00010272,2]
[352326857,1739043051399,-500.0,0.00010272,2]
[352326858,1739043051408,-500.0,0.00010272,2]
[352326859,1739043051417,-500.0,0.00010272,2]
[352326860,1739043051426,-503.38,0.00010272,2]
[352326861,1739043051435,-500.0,0.00010272,2]
[352326862,1739043051445,-500.0,0.00010272,2]
[352326863,1739043051454,-500.0,0.00010272,2]
[352326864,1739043051464,-588.2,0.00010272,2]
[352326865,1739043051474,-500.0,0.00010272,2]
[352326866,1739043051483,-500.0,0.00010272,2]
[352326867,1739043051492,-500.0,0.00010272,2]
[352326868,1739043051501,-500.0,0.00010272,2]
[352326869,1739043051511,-511.44,0.00010272,2]
[352326870,1739043051520,-500.0,0.00010272,2]
[352326871,1739043051529,-632.96,0.00010272,2]
[352326872,1739043051538,-500.0,0.00010272,2]
[352326873,1739043051547,-744.21,0.00010272,2]
[352326874,1739043051556,-500.0,0.00010272,2]
[352326875,1739043051565,-500.0,0.00010272,2]
[352326876,1739043051575,-500.0,0.00010272,2]
[352326877,1739043051583,-500.0,0.00010272,2]
[352326878,1739043051593,-500.0,0.00010272,2]
[352326879,1739043051603,-500.0,0.00010272,2]
[352326880,1739043051612,-500.0,0.00010272,2]
[352326881,1739043051623,-666.37,0.00010272,2]
[352326882,1739043051632,-855.64,0.00010272,2]
[352326883,1739043051643,-500.0,0.00010272,2]
[352326884,1739043051653,-500.0,0.00010272,2]
[352326885,1739043051663,-500.0,0.00010272,2]
[352326886,1739043051672,-761.03,0.00010272,2]
[352326887,1739043051681,-500.0,0.00010272,2]
[352326888,1739043051691,-777.48,0.00010272,2]
[352326889,1739043051701,-500.0,0.00010272,2]
[352326890,1739043051711,-1179.22,0.00010272,2]
[352326891,1739043051720,-500.0,0.00010272,2]
[352326892,1739043051729,-597.46,0.00010272,2]
[352326893,1739043051737,-500.0,0.00010272,2]
[352326894,1739043051747,-500.0,0.00010272,2]
[352326895,1739043051756,-500.0,0.00010272,2]
[352326896,1739043051764,-500.0,0.00010272,2]
[352326897,1739043051773,-500.0,0.00010272,2]
[352326898,1739043051782,-2670.91,0.00010272,2]
[352326899,1739043051791,-500.0,0.00010272,2]
[352326900,1739043051800,-4010.65,0.00010272,2]
[352326901,1739043051809,-817.59,0.00010272,2]
[352326902,1739043051818,-500.0,0.00010272,2]
[352326903,1739043051826,-500.0,0.00010272,2]
[352326904,1739043051835,-1271.98,0.00010272,2]
[352326905,1739043051844,-940.49,0.00010272,2]
[352326906,1739043051853,-500.0,0.00010272,2]
[352326907,1739043051862,-500.0,0.00010272,2]
[352326908,1739043051872,-500.0,0.00010272,2]
[352326909,1739043051881,-500.0,0.00010272,2]
[352326910,1739043051891,-1335.61,0.00010272,2]
[352326911,1739043051900,-500.0,0.00010272,2]
[352326912,1739043051909,-989.3,0.00010272,2]
[352326913,1739043051918,-500.0,0.00010272,2]
[352326914,1739043051928,-745.3,0.00010272,2]
[352326915,1739043051937,-1381.9,0.00010272,2]
[352326916,1739043051946,-500.0,0.00010272,2]
[352326917,1739043051959,-500.0,0.00010272,2]
[352326918,1739043051968,-500.0,0.00010272,2]
[352326919,1739043051978,-500.0,0.00010272,2]
[352326920,1739043051987,-500.0,0.00010272,2]
[352326921,1739043051996,-500.0,0.00010272,2]
[352326922,1739043052006,-1083.73,0.00010272,2]
[352326923,1739043052015,-1420.49,0.00010272,2]
[352326924,1739043052024,-500.0,0.00010272,2]
[352326925,1739043052033,-500.0,0.00010272,2]
[352326926,1739043052042,-805.22,0.00010272,2]
[352326927,1739043052051,-977.83,0.00010272,2]
[352326928,1739043052060,-1000.0,0.00010272,2]
[352326929,1739043052069,-500.0,0.00010272,2]
[352326930,1739043052079,-500.0,0.00010272,2]
[352326931,1739043052088,-1078.77,0.00010272,2]
[352326932,1739043052096,-500.0,0.00010272,2]
[352326933,1739043052106,-500.0,0.00010272,2]
[352326934,1739043052115,-500.0,0.00010272,2]
[352326935,1739043052124,-872.95,0.00010272,2]
[352326936,1739043052134,-341.16414309,0.00010272,2]
[352326937,1739043052144,-1162.31,0.00010272,2]
[352326938,1739043052155,-1205.36,0.00010272,2]
[352326939,1739043052165,-500.0,0.00010272,2]
[352326940,1739043052176,-500.0,0.00010272,2]
[352326941,1739043052187,-1261.93,0.00010272,2]
[352326942,1739043052197,-970.23,0.00010272,2]
[352326943,1739043052212,-758.61,0.00010272,2]
[352326944,1739043052227,-628.69,0.00010272,2]
[352326945,1739043052237,-644.28,0.00010272,2]
[352326946,1739043052249,-500.0,0.00010272,2]
[352326947,1739043052260,-500.0,0.00010272,2]
[352326948,1739043052272,-500.0,0.00010272,2]
[352326949,1739043052283,-953.29,0.00010272,2]
[352326950,1739043052295,-484.23654809,0.00010272,2]
[352326951,1739043052306,-500.0,0.00010272,2]
[352326952,1739043052316,-1080.65,0.00010272,2]
[352326953,1739043052327,-576.07,0.00010273,2]
[352326954,1739043052337,-2032.36,0.00010273,2]
[352326955,1739043052349,-1169.34,0.00010273,2]
[352326956,1739043052361,-897.82,0.00010273,2]
[352326957,1739043052372,-500.0,0.00010273,2]
[352326958,1739043052382,-500.0,0.00010273,2]
[352326959,1739043052396,-830.0,0.00010273,2]
[352326960,1739043052407,-948.5,0.00010273,2]
[352326961,1739043052419,-845.68,0.00010273,2]
[352326962,1739043052430,-1815.3,0.00010273,2]
[352326963,1739043052441,-1751.76,0.00010273,2]
[352326964,1739043052453,-863.25,0.00010273,2]
[352326965,1739043052481,-692.67,0.00010273,2]
[352326966,1739043052493,-1575.88,0.00010273,2]
[352326967,1739043052506,-1834.85,0.00010273,2]
[352326968,1739043052517,-779.44,0.00010273,2]
[352326969,1739043052528,-1013.19,0.00010273,2]
[352326970,1739043052540,-500.0,0.00010273,2]
[352326971,1739043052551,-1086.66,0.00010273,2]
[352326972,1739043052563,-1278.1,0.00010273,2]
[352326973,1739043052574,-2399.26,0.00010273,2]
[352326974,1739043052585,-500.0,0.00010273,2]
[352326975,1739043052595,-671.24,0.00010273,2]
[352326976,1739043052607,-500.0,0.00010273,2]
[352326977,1739043052617,-500.0,0.00010273,2]
[352326978,1739043052627,-860.53,0.00010273,2]
[352326979,1739043052639,-1412.47,0.00010273,2]
[352326980,1739043052649,-1223.4,0.00010273,2]
[352326981,1739043052659,-620.81,0.00010273,2]
[352326982,1739043052671,-500.0,0.00010273,2]
[352326983,1739043052682,-562.06,0.00010273,2]
[352326984,1739043052691,-985.27,0.00010276,2]
[352326985,1739043052702,-985.27,0.00010276,2]
[352326986,1739043052720,-985.27,0.00010276,2]
[352326987,1739043052731,-985.27,0.00010276,2]
[352326988,1739043052742,-985.27,0.00010276,2]
[352326989,1739043052753,-985.27,0.00010276,2]
[352326990,1739043052763,-985.27,0.00010276,2]
[352326991,1739043052774,-503.896,0.00010276,2]
[352326992,1739043052784,-503.896,0.00010276,2]
[352326993,1739043052795,-503.896,0.00010276,2]
[352326994,1739043052805,-503.896,0.00010276,2]
[352326995,1739043052814,-503.896,0.00010276,2]
[352326996,1739043052824,-503.896,0.00010276,2]
[352326997,1739043052834,-503.896,0.00010276,2]
[352326998,1739043052844,-503.896,0.00010276,2]
[352326999,1739043052854,-503.896,0.00010276,2]
[352327000,1739043052864,-503.896,0.00010276,2]
[352327001,1739043052873,-314.87726294,0.00010292,2]
[352327002,1739043052883,-365.67,0.000103,2]
[352327003,1739043052892,-985.27,0.000103,2]
[352327004,1739043052901,-6749.83755095,0.00010307,2]
[352327005,1739043052911,-4438.6169907,0.00010319,2]
[352327006,1739043052922,-967.45672826,0.00010319,2]
[352327007,1739043052931,-521.03,0.00010408,2]
[352327008,1739043052941,-500.0,0.00010408,2]
[352327009,1739043052951,-619.25,0.00010408,2]
[352327010,1739043052963,-500.0,0.00010408,2]
[352327011,1739043052973,-845.14,0.00010408,2]
[352327012,1739043052983,-719.5,0.00010408,2]
[352327013,1739043052992,-500.0,0.00010408,2]
[352327014,1739043053002,-712.65,0.00010408,2]
[352327015,1739043053012,-500.0,0.00010408,2]
[352327016,1739043053021,-500.0,0.00010408,2]
[352327017,1739043053030,-661.8,0.00010408,2]
[352327018,1739043053040,-500.0,0.00010408,2]
[352327019,1739043053050,-500.0,0.00010408,2]
[352327020,1739043053059,-500.0,0.00010408,2]
[352327021,1739043053069,-500.0,0.00010408,2]
[352327022,1739043053079,-500.0,0.00010408,2]
[352327023,1739043053089,-500.0,0.00010408,2]
[352327024,1739043053098,-500.0,0.00010408,2]
[352327025,1739043053108,-572.41,0.00010408,2]
[352327026,1739043053117,-500.0,0.00010408,2]
[352327027,1739043053127,-500.0,0.00010408,2]
[352327028,1739043053137,-500.0,0.00010408,2]
[352327029,1739043053146,-642.26,0.00010408,2]
[352327030,1739043053156,-1123.42,0.00010408,2]
[352327031,1739043053166,-500.0,0.00010408,2]
[352327032,1739043053175,-500.0,0.00010408,2]
[352327033,1739043053185,-500.0,0.00010408,2]